[Event "58th Akiba Rubinstein D 2022"]
[Site "Polanica-Zdroj"]
[Date "2022.08.15"]
[Round "3.5"]
[White "Meizlin, Yaacov"]
[Black "Wilgosz, Tomasz"]
[Result "1-0"]
[ECO "C00"]
[WhiteElo "1938"]
[BlackElo "1513"]
[Annotator "TA"]
[PlyCount "117"]
[EventDate "2022.08.13"]
[EventCountry "POL"]
[SourceTitle "playchess.com"]
[Source "ChessBase"]
[SourceQuality "1"]
[TimeControl "40/5400+30:1800+30"]

{[%evp 9,117,11,13,13,16,23,43,15,64,72,105,101,159,152,167,114,177,87,80,0,93,77,87,88,107,103,111,85,119,114,111,114,116,103,104,62,110,0,111,84,106,103,130,129,154,152,240,235,327,327,376,371,379,373,327,361,322,261,272,264,213,172,204,84,113,78,636,588,449,407,1590,1496,1634,1504,29966,29964,29975,29977,29976,29978,29978,29979,29978,29980,29980,29981,29981,29982,29982,29983,29983,29984,29983,29984,29984,29985,29988,29989,29989,29989,29989,29990,29990,29991,29991,29990,29990,29991,29991,381]} 1. e4 e6 2. d3 d5 3. c3 dxe4 4. dxe4 Qxd1+ 5. Kxd1 Bc5 6. f3 {C00: French: Unusual White 2nd moves.} Nf6 {[#]} 7. Bf4 $146 ({Predecessor:} 7. Bd3 e5 8. Ke2 O-O 9. Be3 Nbd7 10. Nd2 Bxe3 11. Kxe3 Nb6 12. Rd1 Be6 13. b3 {1-0 (60) Stanek,S (1971)-Vincze,R (2125) Czech Republic 2016}) 7... Bb6 8. a4 {White is slightly better.} a5 (8... Nc6 $11 {was preferrable.}) 9. Na3 $14 Nc6 10. Nc4 {Against e5} Kd7 (10... e5 $142) 11. Kc2 $16 Rd8 12. g4 (12. Nxb6+ $18 cxb6 13. Bb5) 12... h5 (12... Bc5 $16) 13. gxh5 (13. Nxb6+ $18 {has better winning chances.} cxb6 14. g5) 13... Nxh5 14. Rd1+ (14. Nxb6+ $16 cxb6 15. Rd1+ Ke7 16. Bc7) 14... Ke7 (14... Nd4+ $1 $11 {keeps the balance.} 15. cxd4 Nxf4) 15. Nxb6 cxb6 16. Bc7 {[%csl LRb6,LRd8] This bishop pair is nice.} Rxd1 17. Kxd1 Bd7 18. Bb5 Na7 19. Bxd7 {White is more active.} Kxd7 20. Bxb6 Nc6 21. Be3 Ne5 22. Kc2 Rh8 {[#]} (22... Rf8 $14) 23. h3 (23. h4 $1 $16) 23... f5 (23... Ng3 $11 {remains equal.} 24. Rh2 Nf1) 24. Bd4 Kd6 25. Rh2 Nc6 26. Rd2 {aiming for Bxg7+.} Nxd4+ 27. Rxd4+ {[%mdl 4096] Endgame KRN-KRN} Kc6 {[#]} (27... Kc7 $16) 28. e5 $1 $18 Re8 29. Ne2 g5 30. h4 Nf4 31. Nxf4 gxf4 {KR-KR} 32. b4 Rh8 33. Rd6+ (33. Rxf4 Kd5 34. bxa5 (34. Rd4+ Kxe5 35. bxa5 Rh7 $18) 34... Kxe5 $18) (33. bxa5 $6 Rxh4 34. Rd6+ Kc7 35. Rxe6 Rh3 $18) 33... Kc7 34. Rxe6 ({Don't take} 34. bxa5 $6 Rxh4 35. Rxe6 Rh3 $18) 34... Rxh4 35. Rf6 Rh3 36. Rxf5 (36. Rf7+ $18 {is more deadly.} Kc6 37. Rf6+ (37. Rxf5 Rxf3 38. bxa5 Kd5 $14) 37... Kd5 38. e6 (38. bxa5 Rxf3 39. e6 Kd6 $14)) 36... Rxf3 $16 37. b5 Rf2+ $2 {[%mdl 8192] Black cannot hold the game after this.} (37... Re3 $16) 38. Kd3 $18 {Strongly threatening Ke4.} f3 39. Rf7+ Kc8 (39... Kb6 $142 40. c4 Rf1) 40. Kd4 Ra2 41. Rxf3 Rxa4+ 42. Kd5 {White mates.} Ra1 43. b6 Rb1 44. Rf8+ Kd7 45. e6+ Ke7 46. Rf7+ Ke8 47. Rxb7 a4 48. Kc5 a3 49. Ra7 a2 50. Rxa2 Ke7 51. Ra4 Kxe6 52. Rb4 Rxb4 53. Kxb4 {KP-KP} Kd6 54. c4 {[%cal Bc3c4,Bc4c5,Bc5c6][%mdl 32]} Kc6 55. c5 Kb7 56. Kb5 Kb8 57. Ka6 Ka8 58. b7+ Kb8 59. c6 {Weighted Error Value: White=0.16 (very precise) /Black=0.51} 1-0

[Event "58th Akiba Rubinstein D 2022"]
[Site "Polanica-Zdroj"]
[Date "2022.08.15"]
[Round "3.6"]
[White "Zerebiec, Maurycy"]
[Black "Rosa, Antoni"]
[Result "1-0"]
[ECO "A36"]
[WhiteElo "1915"]
[BlackElo "1598"]
[Annotator "RC"]
[PlyCount "55"]
[EventDate "2022.08.13"]
[EventCountry "POL"]
[SourceTitle "playchess.com"]
[Source "ChessBase"]
[SourceQuality "1"]
[TimeControl "40/5400+30:1800+30"]

1. c4 {[%emt 0:00:02]} c5 {[%emt 0:00:09]} 2. Nc3 {[%emt 0:00:04]} Nc6 {[%emt 0:00:05]} 3. g3 {[%emt 0:00:22]} g6 {[%emt 0:00:08]} 4. Bg2 {[%emt 0:00:02]} Bg7 {[%emt 0:00:06]} 5. d3 {[%emt 0:00:26]} d6 {[%emt 0:00:13]} 6. e4 {[%emt 0:00:09]} e5 {[%emt 0:00:04]} 7. Nge2 {[%emt 0:00:05]} Nge7 {[%emt 0:00:07]} 8. O-O {[%emt 0:00:14]} O-O {[%emt 0:00:03]} 9. Be3 {[%emt 0:00:43]} f5 {[%emt 0:02:12]} 10. Qd2 {[%emt 0:01:09]} Nd4 {[%emt 0:01:12]} 11. Bg5 {[%emt 0:01:08]} Bf6 {[%emt 0:02:41]} 12. Bxf6 {[%emt 0:03:16]} Rxf6 {[%emt 0:00:04]} 13. f4 {[%emt 0:01:17]} Nec6 {[%emt 0:02:11]} 14. Nxd4 {[%emt 0:01:10]} Nxd4 {[%emt 0:01:24]} 15. Nd5 {[%emt 0:00:03]} Rf7 {[%emt 0:00:53]} 16. fxe5 {[%emt 0:00:56]} dxe5 {[%emt 0:00:04]} 17. Rae1 {[%emt 0:01:43]} Qd6 {[%emt 0:00:59]} 18. Qg5 {[%emt 0:09:30]} Be6 {[%emt 0:05:33]} 19. exf5 {[%emt 0:01:03]} Bxf5 {[%emt 0:01:14]} 20. g4 {[%emt 0:07:12]} Bxd3 {[%emt 0:04:47]} 21. Rxf7 {[%emt 0:00:59]} Kxf7 {[%emt 0:00:03]} 22. Rxe5 {[%emt 0:00:49]} Ne2+ {[%emt 0:13:16]} 23. Kh1 {[%emt 0:03:03]} Kg8 {[%emt 0:12:49]} 24. Nf6+ {[%emt 0:14:31]} Kh8 {[%emt 0:03:31]} 25. Ne8 {[%emt 0:08:38]} Qf8 {[%emt 0:08:33]} 26. Re7 {[%emt 0:03:52]} Qf4 {[%emt 0:01:19]} 27. Rxh7+ {[%emt 0:01:40]} Kg8 {[%emt 0:02:15]} 28. Rg7+ {[%emt 0:00:12]} 1-0

[Event "58th Akiba Rubinstein D 2022"]
[Site "Polanica-Zdroj"]
[Date "2022.08.15"]
[Round "3.7"]
[White "Milczarek, Robert"]
[Black "Lewandrowski, Tomasz"]
[Result "0-1"]
[ECO "D58"]
[WhiteElo "1653"]
[BlackElo "1902"]
[Annotator "TA"]
[PlyCount "60"]
[EventDate "2022.08.13"]
[EventCountry "POL"]
[SourceTitle "playchess.com"]
[Source "ChessBase"]
[SourceQuality "1"]
[TimeControl "40/5400+30:1800+30"]

{[%evp 21,60,-24,41,45,59,26,46,0,0,-68,-50,-74,-9,-83,-2,0,0,-109,-101,-245,-246,-212,-16,-2,-4,-263,-246,-240,-246,-293,-319,-295,-280,-404,-348,-338,-354,-821,-819,-938,-896]} 1. d4 d5 2. c4 e6 3. Nc3 Be7 4. Nf3 Nf6 5. Bg5 h6 6. Bh4 O-O 7. e3 b6 8. Qc2 Bb7 9. Bxf6 Bxf6 10. cxd5 exd5 11. O-O-O Nd7 (11... c5 $11) 12. h4 $14 {D58: Queen's Gambit Declined: Tartakower Defence.} g6 13. g4 {[%cal Og4g5]} Bg7 14. g5 (14. h5 $14) 14... h5 $1 $11 {[#]} 15. Be2 $146 (15. Kb1) (15. Kb1 $11) ({Predecessor:} 15. Ne1 Re8 16. Ng2 Nf8 17. f4 f5 18. gxf6 Qxf6 19. Rh3 Rad8 20. Rg3 Bc8 21. Kb1 {0-1 (31) Stojanovski,I (2310)-Dimovski,N (2385) Struga 1991}) 15... Re8 16. Ng1 Qe7 (16... Rc8 17. Nf3 a6) ({Better is} 16... Rc8 $17) 17. Nh3 (17. Rh3) (17. Kb1 $11) 17... Nf8 (17... c5 18. Kb1 cxd4 19. exd4 Nb8) (17... c5 $17 18. Kb1 cxd4 19. exd4 Nb8) 18. Nf4 c6 19. Rdg1 (19. Bxh5 gxh5 20. Nxh5) (19. Bxh5 $11 {keeps the balance.} gxh5 20. Nxh5) 19... Ne6 $17 20. Nxg6 fxg6 $19 21. Qxg6 {[#]} Nf8 $2 (21... c5 22. dxc5 (22. Bxh5 cxd4 23. Ne2 dxe3) 22... d4) (21... c5 $1 $19 {[%cal Rc5d4]} 22. dxc5 (22. Bxh5 $2 cxd4 23. Ne2 Nf8 $19) 22... d4) 22. Qxh5 $11 c5 23. Qg4 {[%mdl 8192]} (23. Rd1) (23. Rd1 $1 $11 {and White has nothing to worry.}) 23... cxd4 24. exd4 Rac8 25. Bd3 Qb4 26. Bc2 Bxd4 {Really sharp!} ({Wrong is} 26... Qxd4 $2 27. Qxd4 Bxd4 28. Bb3 $19) 27. a3 {[#]} (27. Rg3 $142) 27... Re1+ $3 $19 {[%mdl 512]} 28. Rxe1 {[#]} Be3+ $1 {[%mdl 576] Discovered Attack} 29. Rxe3 $2 (29. Kb1 Qxg4 30. fxe3) (29. fxe3 Qxg4) 29... Qxg4 30. Rg3 Qf4+ {Weighted Error Value: White=0.87/Black=0.31} 0-1

[Event "58th Akiba Rubinstein D 2022"]
[Site "Polanica-Zdroj"]
[Date "2022.08.15"]
[Round "3.8"]
[White "Owoc, Jakub"]
[Black "Perek, Oskar"]
[Result "1-0"]
[ECO "C45"]
[WhiteElo "1756"]
[BlackElo "1555"]
[Annotator "NA RC"]
[PlyCount "67"]
[EventDate "2022.08.13"]
[EventCountry "POL"]
[SourceTitle "playchess.com"]
[Source "ChessBase"]
[SourceQuality "1"]
[TimeControl "40/5400+30:1800+30"]

1. e4 {[%emt 0:00:02]} e5 {[%emt 0:00:12]} 2. Nf3 {[%emt 0:00:07]} Nc6 {[%emt 0:00:07]} 3. d4 {[%emt 0:00:06]} exd4 {[%emt 0:00:16]} 4. Nxd4 {[%emt 0:00:05]} Nf6 {[%emt 0:00:38]} 5. Nxc6 {[%emt 0:00:21]} bxc6 {[%emt 0:00:11]} 6. e5 {[%emt 0:00:13]} Qe7 {[%emt 0:00:09]} 7. Qe2 {[%emt 0:00:07]} Nd5 {[%emt 0:00:48]} 8. c4 {[%emt 0:00:07]} Ba6 {[%emt 0:01:08]} 9. b3 {[%emt 0:04:09]} g6 {[%emt 0:01:37]} 10. Bb2 {[%emt 0:00:15]} Bg7 {[%emt 0:00:45]} 11. g3 {[%emt 0:06:44]} O-O {[%emt 0:02:53]} 12. Bg2 {[%emt 0:00:18]} Rfe8 {[%emt 0:00:54]} 13. O-O {[%emt 0:00:40]} Rab8 {[%emt 0:08:02]} 14. Re1 {[%emt 0:03:28]} f6 {[%emt 0:10:11]} 15. Qe4 {[%emt 0:23:21]} f5 {[%emt 0:05:19]} 16. Qc2 {[%emt 0:01:11]} Nb6 17. Nd2 {[%emt 0:07:29]} c5 {[%emt 0:08:35]} 18. f4 {[%emt 0:08:19]} Bb7 {[%emt 0:04:31]} 19. Bxb7 {[%emt 0:00:20]} Rxb7 {[%emt 0:00:01]} 20. Nf3 {[%emt 0:00:42]} h6 {[%emt 0:01:34]} 21. Rad1 {[%emt 0:00:26]} Qf7 {[%emt 0:01:25]} 22. Re3 {[%emt 0:03:17]} Rbb8 {[%emt 0:01:39]} 23. Red3 {[%emt 0:01:31]} Rbd8 {[%emt 0:02:12]} 24. Qf2 {[%emt 0:00:47]} Bf8 {[%emt 0:00:38]} 25. a4 {[%emt 0:00:06]} Be7 {[%emt 0:03:49]} 26. a5 {[%emt 0:00:19]} Nc8 {[%emt 0:00:13]} 27. Rxd7 {[%emt 0:00:14]} Qf8 {[%emt 0:00:59]} 28. Qd2 {[%emt 0:01:58]} Kh7 {[%emt 0:00:38]} 29. Qc3 {[%emt 0:01:33]} a6 {[%emt 0:00:51]} 30. R1d2 {[%emt 0:03:18]} Rxd7 {[%emt 0:00:39]} 31. Rxd7 {[%emt 0:00:06]} Rd8 {[%emt 0:00:06]} 32. Qd3 {[%emt 0:00:15]} c6 {[%emt 0:00:39]} 33. e6 {[%emt 0:01:20]} Nd6 {[%emt 0:00:20]} 34. Qxd6 {[%emt 0:00:08]} 1-0

[Event "58th Akiba Rubinstein D 2022"]
[Site "Polanica-Zdroj"]
[Date "2022.08.15"]
[Round "3.9"]
[White "Blasiak, Miroslaw"]
[Black "Gbiorczyk, Mikolaj"]
[Result "0-1"]
[ECO "B33"]
[WhiteElo "1608"]
[BlackElo "1781"]
[Annotator "NA RC"]
[PlyCount "162"]
[EventDate "2022.08.13"]
[EventCountry "POL"]
[SourceTitle "playchess.com"]
[Source "ChessBase"]
[SourceQuality "1"]
[TimeControl "40/5400+30:1800+30"]

1. e4 {[%emt 0:00:44]} c5 {[%emt 0:00:06]} 2. Nf3 {[%emt 0:00:57]} Nc6 {[%emt 0:00:06]} 3. d4 {[%emt 0:00:19]} cxd4 {[%emt 0:00:07]} 4. Nxd4 {[%emt 0:00:07]} Nf6 {[%emt 0:00:08]} 5. Nc3 {[%emt 0:00:12]} e5 {[%emt 0:00:05]} 6. Ndb5 {[%emt 0:00:47]} d6 {[%emt 0:00:06]} 7. Bg5 {[%emt 0:00:17]} a6 {[%emt 0:00:06]} 8. Na3 {[%emt 0:00:10]} b5 {[%emt 0:00:06]} 9. Bxf6 {[%emt 0:00:13]} gxf6 {[%emt 0:00:06]} 10. Nd5 {[%emt 0:00:08]} f5 {[%emt 0:00:06]} 11. Bd3 {[%emt 0:02:01]} Be6 {[%emt 0:01:14]} 12. Qh5 {[%emt 0:04:03]} Rg8 {[%emt 0:04:49]} 13. g3 {[%emt 0:15:16]} Rg5 {[%emt 0:07:46]} 14. Qd1 {[%emt 0:09:43]} Bxd5 {[%emt 0:08:04]} 15. exd5 {[%emt 0:00:59]} Ne7 {[%emt 0:00:16]} 16. c3 {[%emt 0:28:30]} Qb6 {[%emt 0:16:59]} 17. c4 {[%emt 0:30:50]} Qa5+ {[%emt 0:22:41]} 18. Qd2 {[%emt 0:00:39]} Qxd2+ {[%emt 0:00:11]} 19. Kxd2 {[%emt 0:00:02]} e4 {[%emt 0:00:56]} 20. Be2 {[%emt 0:01:04]} Bg7 {[%emt 0:04:31]} 21. Rab1 {[%emt 0:00:37]} Bh6 {[%emt 0:12:03]} 22. Ke1 {[%emt 0:01:40]} Kd7 {[%emt 0:03:18]} 23. f4 {[%emt 0:01:08]} Rgg8 {[%emt 0:01:28]} 24. Kf2 {[%emt 0:00:17]} Rgc8 {[%emt 0:01:26]} 25. Rhd1 {[%emt 0:00:50]} b4 {[%emt 0:03:56]} 26. Nc2 {[%emt 0:00:01]} a5 {[%emt 0:00:07]} 27. b3 {[%emt 0:01:07]} Bg7 {[%emt 0:00:23]} 28. Nd4 {[%emt 0:00:45]} Bxd4+ {[%emt 0:00:45]} 29. Rxd4 {[%emt 0:00:02]} h5 {[%emt 0:02:56]} 30. Bxh5 {[%emt 0:01:17]} Rh8 {[%emt 0:00:07]} 31. Bxf7 {[%emt 0:00:09]} Rxh2+ {[%emt 0:00:06]} 32. Ke3 {[%emt 0:00:37]} Rah8 {[%emt 0:01:04]} 33. Rd2 {[%emt 0:00:12]} Rxd2 {[%emt 0:00:24]} 34. Kxd2 {[%emt 0:00:02]} Rh2+ {[%emt 0:00:10]} 35. Ke3 {[%emt 0:00:27]} Rg2 {[%emt 0:01:37]} 36. Be6+ {[%emt 0:00:02]} Kc7 {[%emt 0:00:29]} 37. Rh1 {[%emt 0:00:06]} Rxg3+ {[%emt 0:00:12]} 38. Kf2 {[%emt 0:00:37]} Rf3+ {[%emt 0:03:00]} 39. Ke2 {[%emt 0:00:07]} Ng6 {[%emt 0:00:09]} 40. Rh7+ {[%emt 0:01:44]} Kb6 {[%emt 0:00:12]} 41. Bxf5 {[%emt 0:30:50]} Nxf4+ {[%emt 0:30:04]} 42. Kd1 {[%emt 0:01:14]} Rf1+ {[%emt 0:02:56]} 43. Kd2 {[%emt 0:00:28]} e3+ {[%emt 0:00:15]} 44. Kxe3 {[%emt 0:00:28]} Ng2+ {[%emt 0:00:06]} 45. Ke4 {[%emt 0:00:37]} Rf4+ {[%emt 0:00:05]} 46. Kd3 {[%emt 0:00:25]} Rxf5 {[%emt 0:00:04]} 47. Rg7 {[%emt 0:00:27]} Ne1+ 48. Ke4 {[%emt 0:00:40]} Re5+ {[%emt 0:01:14]} 49. Kd4 {[%emt 0:00:26]} Nf3+ {[%emt 0:01:32]} 50. Kd3 {[%emt 0:00:07]} Nh4 {[%emt 0:00:36]} 51. Rd7 {[%emt 0:00:32]} Nf5 {[%emt 0:00:07]} 52. Rd8 {[%emt 0:00:29]} Re3+ {[%emt 0:00:46]} 53. Kd2 {[%emt 0:00:04]} Rh3 {[%emt 0:01:11]} 54. Rf8 {[%emt 0:00:34]} Rh2+ {[%emt 0:01:16]} 55. Kd3 {[%emt 0:00:12]} Ne7 {[%emt 0:00:23]} 56. Re8 {[%emt 0:00:42]} Nf5 {[%emt 0:02:48]} 57. Rf8 {[%emt 0:00:16]} Ng3 {[%emt 0:01:29]} 58. Rc8 {[%emt 0:00:34]} Rxa2 {[%emt 0:00:55]} 59. Rc6+ {[%emt 0:00:31]} Kb7 {[%emt 0:00:04]} 60. Rxd6 {[%emt 0:00:17]} Rd2+ {[%emt 0:00:07]} 61. Kxd2 {[%emt 0:00:42]} Ne4+ {[%emt 0:00:03]} 62. Kd3 {[%emt 0:00:24]} Nxd6 {[%emt 0:00:03]} 63. c5 {[%emt 0:00:14]} Nb5 {[%emt 0:01:45]} 64. Kc4 {[%emt 0:00:34]} Na3+ {[%emt 0:00:12]} 65. Kd4 {[%emt 0:00:24]} Kc7 {[%emt 0:00:47]} 66. Kd3 {[%emt 0:01:28]} Kd7 {[%emt 0:01:08]} 67. Kd4 {[%emt 0:00:22]} Ke7 {[%emt 0:00:16]} 68. Kd3 {[%emt 0:00:08]} Kd8 {[%emt 0:00:50]} 69. Kd4 {[%emt 0:00:14]} Kd7 {[%emt 0:00:23]} 70. Kd3 {[%emt 0:00:06]} Kc7 {[%emt 0:00:43]} 71. Kd4 {[%emt 0:00:09]} Nb5+ {[%emt 0:00:13]} 72. Kc4 {[%emt 0:00:16]} Na7 {[%emt 0:00:13]} 73. Kd4 {[%emt 0:00:22]} Kd7 {[%emt 0:00:06]} 74. Kc4 {[%emt 0:00:27]} Ke7 {[%emt 0:00:17]} 75. Kd4 {[%emt 0:00:12]} Kf6 {[%emt 0:01:33]} 76. c6 {[%emt 0:00:24]} Nc8 {[%emt 0:00:41]} 77. Kc5 {[%emt 0:00:49]} Ke5 {[%emt 0:00:16]} 78. c7 {[%emt 0:01:42]} Nd6 {[%emt 0:01:04]} 79. c8=Q {[%emt 0:01:49]} Nxc8 {[%emt 0:00:05]} 80. Kb5 {[%emt 0:00:12]} Kxd5 {[%emt 0:00:29]} 81. Kxa5 {[%emt 0:00:15]} Kc5 {[%emt 0:00:05]} 0-1

[Event "58th Akiba Rubinstein D 2022"]
[Site "Polanica-Zdroj"]
[Date "2022.08.15"]
[Round "3.10"]
[White "Penza, Denis"]
[Black "Serewa, Antoni"]
[Result "1/2-1/2"]
[ECO "E73"]
[WhiteElo "1836"]
[BlackElo "1542"]
[Annotator "NA RC"]
[PlyCount "66"]
[EventDate "2022.08.13"]
[EventCountry "POL"]
[SourceTitle "playchess.com"]
[Source "ChessBase"]
[SourceQuality "1"]
[TimeControl "40/5400+30:1800+30"]

1. d4 {[%emt 0:00:03]} Nf6 {[%emt 0:00:10]} 2. c4 {[%emt 0:00:06]} g6 {[%emt 0:00:05]} 3. Nc3 {[%emt 0:00:07]} Bg7 {[%emt 0:00:10]} 4. e4 {[%emt 0:00:22]} d6 {[%emt 0:00:08]} 5. Be2 {[%emt 0:00:03]} O-O {[%emt 0:00:08]} 6. Bg5 {[%emt 0:00:02]} Na6 {[%emt 0:00:10]} 7. Qd2 {[%emt 0:00:47]} e5 {[%emt 0:00:46]} 8. d5 {[%emt 0:01:25]} Qe8 {[%emt 0:00:29]} 9. f3 {[%emt 0:07:48]} Nd7 {[%emt 0:10:41]} 10. h4 {[%emt 0:02:18]} f6 {[%emt 0:05:11]} 11. Bh6 {[%emt 0:01:30]} Qf7 {[%emt 0:00:10]} 12. Bxg7 {[%emt 0:01:05]} Qxg7 {[%emt 0:00:37]} 13. g4 {[%emt 0:00:22]} f5 {[%emt 0:02:03]} 14. gxf5 {[%emt 0:02:40]} gxf5 {[%emt 0:00:09]} 15. O-O-O {[%emt 0:00:20]} Ndc5 {[%emt 0:03:33]} 16. Nh3 {[%emt 0:01:03]} Kh8 {[%emt 0:00:34]} 17. Rdg1 {[%emt 0:03:14]} Qf6 {[%emt 0:00:29]} 18. Rg5 {[%emt 0:02:02]} Bd7 {[%emt 0:08:48]} (18... fxe4 $11 19. fxe4 Bd7) 19. Nf2 {[%emt 0:12:56]} fxe4 {[%emt 0:12:07]} 20. Nfxe4 {[%emt 0:01:05]} Qf4 {[%emt 0:08:21]} 21. Qxf4 {[%emt 0:09:50]} exf4 {[%emt 0:03:12]} (21... Rxf4 $11 {keeps the balance.} 22. Rhg1 Nxe4 23. Nxe4 Bf5) 22. Rhg1 {[%emt 0:03:14]} Bf5 {[%emt 0:04:13]} 23. Nxc5 {[%emt 0:07:20]} Nxc5 {[%emt 0:01:19]} 24. Rg7 {[%emt 0:01:46]} Rg8 {[%emt 0:00:47]} 25. Rxg8+ {[%emt 0:02:32]} Rxg8 {[%emt 0:00:06]} 26. Rxg8+ {[%emt 0:00:56]} Kxg8 {[%emt 0:00:05]} 27. Nb5 {[%emt 0:04:09]} a6 {[%emt 0:11:51]} 28. Nd4 {[%emt 0:03:39]} Bh3 $11 {[%emt 0:02:39]} 29. Kd2 {[%emt 0:03:49]} Nd7 {[%emt 0:07:14]} 30. Kd3 {[%emt 0:04:01]} Nc5+ {[%emt 0:00:07]} 31. Kc3 {[%emt 0:03:19]} Nd7 {[%emt 0:00:20]} 32. Kd3 {[%emt 0:07:29]} Nc5+ {[%emt 0:00:08]} 33. Kc3 {[%emt 0:00:37]} Nd7 {[%emt 0:00:05]} 1/2-1/2

[Event "58th Akiba Rubinstein D 2022"]
[Site "Polanica-Zdroj"]
[Date "2022.08.15"]
[Round "3.11"]
[White "Krygiel, Konrad"]
[Black "Sola, Wojciech"]
[Result "1/2-1/2"]
[ECO "B23"]
[WhiteElo "1603"]
[BlackElo "1780"]
[Annotator "NA RC"]
[PlyCount "95"]
[EventDate "2022.08.13"]
[EventCountry "POL"]
[SourceTitle "playchess.com"]
[Source "ChessBase"]
[SourceQuality "1"]
[TimeControl "40/5400+30:1800+30"]

1. e4 {[%emt 0:02:14]} c5 {[%emt 0:00:27]} 2. Nc3 {[%emt 0:00:37]} g6 {[%emt 0:00:23]} 3. g3 {[%emt 0:00:02]} Bg7 {[%emt 0:00:32]} 4. Bg2 {[%emt 0:00:03]} Nc6 {[%emt 0:00:28]} 5. Nge2 {[%emt 0:00:46]} e5 {[%emt 0:01:08]} 6. d3 {[%emt 0:00:29]} Nge7 {[%emt 0:00:25]} 7. O-O {[%emt 0:00:09]} O-O {[%emt 0:00:28]} 8. f4 {[%emt 0:04:17]} d6 {[%emt 0:00:43]} 9. h3 {[%emt 0:01:49]} f5 {[%emt 0:02:39]} 10. Be3 {[%emt 0:19:17]} Rb8 {[%emt 0:01:51]} 11. Bf2 {[%emt 0:13:18]} Be6 {[%emt 0:04:30]} 12. Qe1 {[%emt 0:14:19]} Qd7 {[%emt 0:01:10]} 13. Kh2 {[%emt 0:04:30]} b6 {[%emt 0:00:17]} 14. Ng1 {[%emt 0:12:44]} Kh8 {[%emt 0:08:29]} 15. Qd2 {[%emt 0:05:23]} exf4 {[%emt 0:09:10]} 16. gxf4 {[%emt 0:00:01]} fxe4 {[%emt 0:07:54]} 17. dxe4 {[%emt 0:00:10]} Rxf4 {[%emt 0:01:20]} 18. Bg3 {[%emt 0:00:10]} Rxf1 {[%emt 0:02:31]} 19. Rxf1 {[%emt 0:01:05]} Be5 {[%emt 0:01:31]} 20. Bxe5+ {[%emt 0:00:49]} Nxe5 {[%emt 0:09:36]} 21. Qg5 {[%emt 0:10:27]} N7c6 {[%emt 0:06:10]} 22. Nge2 {[%emt 0:03:45]} Qd8 {[%emt 0:07:27]} 23. Qg3 {[%emt 0:04:37]} Bc4 {[%emt 0:04:55]} 24. Rf2 {[%emt 0:00:57]} Bxe2 {[%emt 0:00:26]} 25. Nxe2 {[%emt 0:00:06]} Rb7 {[%emt 0:03:41]} 26. Nc3 {[%emt 0:00:24]} Rf7 {[%emt 0:01:22]} 27. Rxf7 {[%emt 0:00:33]} Nxf7 {[%emt 0:00:04]} 28. Nd5 {[%emt 0:00:15]} Qg5 {[%emt 0:03:27]} 29. Qa3 {[%emt 0:00:42]} Kg7 {[%emt 0:05:03]} 30. Qa4 {[%emt 0:00:40]} Nd4 {[%emt 0:01:18]} 31. Qxa7 {[%emt 0:00:25]} Ne2 {[%emt 0:00:30]} 32. Qa3 {[%emt 0:00:39]} Qe5+ {[%emt 0:00:41]} 33. Kh1 {[%emt 0:00:15]} Ng3+ {[%emt 0:12:26]} 34. Kg1 {[%emt 0:00:01]} Nxe4 {[%emt 0:00:27]} 35. Bxe4 {[%emt 0:01:10]} Qxe4 {[%emt 0:00:13]} 36. Nxb6 {[%emt 0:00:47]} Qxc2 {[%emt 0:03:43]} 37. Qc3+ {[%emt 0:00:27]} Qxc3 {[%emt 0:00:02]} 38. bxc3 {[%emt 0:00:01]} Kf6 {[%emt 0:00:37]} 39. a4 {[%emt 0:00:13]} Ne5 {[%emt 0:00:26]} 40. a5 {[%emt 0:00:29]} Nc6 {[%emt 0:00:02]} 41. a6 {[%emt 0:30:14]} Na7 {[%emt 0:30:03]} 42. Kf2 {[%emt 0:00:43]} g5 {[%emt 0:00:25]} 43. Ke3 {[%emt 0:00:34]} Ke6 {[%emt 0:01:28]} 44. Ke4 h5 {[%emt 0:01:05]} 45. c4 {[%emt 0:01:23]} g4 {[%emt 0:00:13]} 46. hxg4 {[%emt 0:00:12]} hxg4 {[%emt 0:00:04]} 47. Nd5 {[%emt 0:00:36]} Kd7 {[%emt 0:01:15]} 48. Nf6+ {[%emt 0:00:23]} 1/2-1/2